bitfinex/quotes_ETHUSD_20251226
["timestamp","ask_amount","ask_price","bid_price","bid_amount"]
[1766740593499,0.002,2965.4,2964.7,3.37302256]
[1766740593689,0.002,2965.4,2964.8,0.68810111]
[1766740594185,0.002,2965.4,2964.7,3.37302256]
[1766740595584,0.002,2965.4,2964.6,6.74624735]
[1766740596300,0.002,2965.4,2964.6,6.88120854]
[1766740596600,0.002,2965.4,2964.6,6.74624735]
[1766740596802,0.002,2965.4,2964.7,0.67462474]
[1766740599003,0.002,2965.4,2964.8,3.37290879]
[1766740601783,0.002,2965.4,2964.8,3.40663787]
[1766740602205,0.002,2965.4,2964.8,3.37290879]
[1766740602411,0.002,2965.4,2964.8,3.40663787]
[1766740602610,0.002,2965.4,2964.8,4.16556215]
[1766740605815,0.002,2965.4,2964.8,4.13183307]
[1766740606020,0.002,2965.4,2964.7,3.37296692]
[1766740606440,0.002,2965.4,2964.8,3.3729017]
[1766740608486,0.002,2965.4,2964.6,6.74627268]
[1766740608690,0.002,2965.4,2964.6,6.88123387]
[1766740609520,0.002,2965.4,2964.6,6.88223387]
[1766740610629,0.002,2965.4,2964.8,3.37290879]
[1766740611496,0.002,2965.4,2964.8,3.40663787]
[1766740612316,0.002,2965.4,2964.8,3.37290879]
[1766740616822,0.002,2965.4,2964.6,3.50901305]
[1766740617036,0.002,2965.4,2964.6,0.13596119]
[1766740618240,3.97845246,2965.4,2964.6,0.001]
[1766740619525,0.002,2965.4,2964.6,0.001]
[1766740620935,0.002,2965.4,2964.6,3.37413634]
[1766740621755,0.002,2965.4,2964.6,0.001]
[1766740622236,3.97845246,2965.4,2964.6,0.001]
[1766740622436,0.39804525,2965.3,2964.6,0.001]
[1766740624739,3.7704042,2965.3,2964.6,0.001]
[1766740625104,0.39804525,2965.3,2964.6,0.001]
[1766740625304,3.77043139,2965.3,2964.6,0.001]
[1766740625527,3.97645246,2965.1,2963.9,3.82989398]
[1766740625729,3.97645246,2965.1,2963.6,0.45997275]
[1766740625730,3.97645246,2965.1,2964.1,3.37363719]
[1766740626059,0.86338839,2965.2,2964.1,3.37363719]
[1766740626060,3.97646875,2964.9,2964.1,3.37363719]
[1766740626357,3.97646875,2964.9,2964.2,3.37358925]
[1766740626558,0.39764688,2964.8,2964.2,3.37358925]
[1766740627075,0.39764688,2964.8,2964.1,3.37370534]
[1766740627941,0.39764688,2964.8,2964.2,0.03373591]
[1766740629358,0.39764688,2964.8,2964.2,3.40730879]
[1766740631031,0.39764688,2964.8,2964.2,0.03373591]
[1766740631332,0.43741156,2964.7,2964.2,0.03373591]
[1766740633661,0.43741156,2964.7,2964.2,3.40731079]
[1766740634232,3.97646875,2964.9,2964.2,3.40731079]
[1766740636862,4.2358948,2965.2,2964.2,3.40731079]
[1766740636863,3.97646875,2965.1,2964.2,3.40731079]
[1766740637184,0.86338839,2965.2,2964.2,6.78090231]
[1766740637535,0.86338839,2965.2,2964.2,3.40731079]
[1766740637735,0.86102872,2965.1,2964.2,3.40731079]
[1766740637977,0.86102872,2965.1,2964.2,3.86728354]
[1766740638184,0.86102872,2965.1,2964.3,0.45997275]
[1766740638337,0.86102872,2965.1,2964.2,3.40731079]
[1766740638338,0.86102872,2965.1,2964.4,0.03373363]
[1766740638537,0.86102872,2965.1,2964.3,0.03373477]
[1766740638775,0.86102872,2965.1,2964.4,0.45997275]
[1766740638969,0.86302872,2965.1,2964.4,0.45997275]
[1766740639166,0.86302872,2965.1,2964.2,3.37357488]
[1766740639167,0.002,2965.1,2964.5,0.0337325]
[1766740639468,0.002,2965.1,2964.3,0.03373477]
[1766740639638,0.002,2965.1,2964.4,0.45997275]
[1766740639839,0.002,2965.1,2964.5,0.0337325]
[1766740640965,0.002,2965.1,2964.5,7.12089729]
[1766740641169,0.002,2965.1,2964.5,3.71391467]
[1766740641364,0.002,2965.1,2964.6,0.03373136]
[1766740642269,0.002,2965.1,2964.6,3.40681899]
[1766740644143,0.002,2965.1,2964.6,0.03373136]
[1766740644363,0.002,2965.1,2964.6,3.40686701]
[1766740644543,0.002,2965.1,2964.6,0.03373136]
[1766740650853,0.002,2965.1,2964.4,0.03373363]
[1766740651848,0.002,2965.1,2964.5,3.37322846]
[1766740652069,0.002,2965.1,2964.6,0.03373136]
[1766740655161,0.002,2965.1,2964.6,3.40685579]
[1766740658798,0.002,2965.1,2964.6,0.03373136]
[1766740658964,0.002,2965.1,2964.5,3.37319843]
[1766740661499,0.002,2965.1,2964.4,0.001]
[1766740661668,0.002,2965.1,2964.4,0.76429554]
[1766740661868,0.002,2965.1,2964.5,0.0337325]
[1766740663688,0.002,2965.1,2964.6,3.37313634]
[1766740663888,0.002,2965.1,2964.7,0.03373022]
[1766740667926,0.002,2965.1,2964.5,3.37321128]
[1766740669343,0.002,2965.1,2964.4,3.37431077]
[1766740670019,0.002,2965.1,2964.4,0.001]
[1766740676323,0.002,2965.1,2964.4,0.03473363]
[1766740676720,0.002,2965.1,2964.4,0.001]
[1766740677598,0.002,2965.1,2964.4,0.03473363]
[1766740679638,0.002,2965.1,2964.5,3.37325012]
[1766740679848,0.002,2965.1,2964.6,0.03373136]
[1766740681627,0.002,2965.1,2964.4,3.37430332]
[1766740681809,0.002,2965.1,2964.4,0.001]
[1766740683026,0.39984688,2965.1,2964.4,0.001]
[1766740686035,0.39984688,2965.1,2964.4,0.03473363]
[1766740687136,0.002,2965.1,2964.4,0.03473363]
[1766740688028,0.002,2965.1,2964.5,3.37325012]
[1766740690329,0.002,2965.1,2964.4,0.03473363]
[1766740690534,0.002,2965.1,2964.4,0.001]
[1766740693540,0.002,2965.1,2964.4,3.37436391]
[1766740693708,0.002,2965.1,2964.5,0.0337325]
[1766740696238,0.002,2965.1,2964.5,3.40689583]
[1766740703848,0.002,2965.1,2964.5,6.78014595]
[1766740704235,0.002,2965.1,2964.5,3.40689583]
[1766740705549,0.002,2965.1,2964.5,6.78014595]
[1766740705863,0.002,2965.1,2964.5,3.40689583]
[1766740706550,0.002,2965.1,2964.5,6.78014595]
[1766740710056,0.002,2965.1,2964.5,3.40689583]
[1766740710430,0.002,2965.1,2964.5,6.78014595]
[1766740712858,0.002,2965.1,2964.5,7.54676055]
[1766740713051,0.002,2965.1,2964.5,7.51302805]
[1766740713355,0.002,2965.1,2964.6,0.13496392]
[1766740713551,0.002,2965.1,2964.7,0.03373022]
[1766740714054,0.002,2965.1,2964.8,3.37290879]
[1766740714254,0.002,2965.1,2964.9,0.37439185]
[1766740714851,0.002,2965.1,2964.9,0.50934848]
[1766740716349,0.002,2965.1,2965.0,3.37268128]
[1766740719861,0.002,2965.1,2964.9,0.47562053]
[1766740720646,0.002,2965.1,2964.9,3.84840843]
[1766740720968,0.002,2965.1,2964.8,3.37286197]
[1766740721265,0.002,2965.1,2964.8,3.50782224]
[1766740721839,0.002,2965.1,2964.9,3.37278812]
[1766740722035,0.002,2965.1,2965.0,0.03372681]
[1766740722966,0.002,2965.1,2965.0,3.40640809]
[1766740723178,0.002,2965.1,2965.0,4.09782337]
[1766740725756,0.002,2965.4,2965.0,4.09782337]
[1766740725757,1e-08,2965.4,2965.0,7.47050465]
[1766740725962,1e-08,2965.4,2965.0,7.43677784]
[1766740726169,1e-08,2965.4,2965.1,0.03372567]
[1766740728471,1e-08,2965.4,2965.1,3.40627045]
[1766740730490,1e-08,2965.4,2965.1,4.16679974]
[1766740734980,1e-08,2965.4,2965.1,3.40627045]
[1766740736865,1e-08,2965.4,2965.1,6.77883798]
[1766740737459,0.002,2966.2,2965.4,3.97513532]
[1766740737866,0.002,2966.3,2965.5,0.03372112]
[1766740738193,0.002,2966.3,2965.6,0.13490747]
[1766740739085,0.002,2966.3,2965.7,3.37188522]
[1766740739294,0.002,2966.3,2965.8,0.35067927]
[1766740739981,0.002,2966.3,2965.9,0.13491384]
[1766740741093,0.002,2966.3,2965.6,3.37196799]
[1766740741276,0.002,2966.3,2965.8,0.13492021]
[1766740741683,0.002,2966.3,2965.7,0.03371885]
[1766740741684,0.002,2966.3,2965.4,3.37214169]
[1766740741898,0.002,2966.3,2965.3,3.37233]
[1766740741899,0.002,2966.3,2965.5,4.9652516]
[1766740743497,3.97513532,2965.9,2965.0,3.37358228]
[1766740743695,0.03572127,2966.3,2965.0,3.37358228]
[1766740743696,0.03372127,2965.8,2965.0,3.3736252]
[1766740743886,0.03372127,2966.1,2965.0,3.3736252]
[1766740744077,0.50209665,2966.0,2965.0,3.3736252]
[1766740744429,0.03372127,2965.9,2965.1,0.03372567]
[1766740744595,0.03372127,2965.9,2965.2,3.37239097]
[1766740744797,0.03372127,2965.9,2965.3,0.0337234]
[1766740745093,0.03372127,2965.9,2965.4,0.03372226]
[1766740745288,1.01210989,2966.2,2965.5,0.03372112]
[1766740745289,1.04583116,2966.2,2965.5,0.03372112]
[1766740745489,0.002,2966.3,2965.2,0.53363968]
[1766740745664,0.03572127,2966.3,2965.2,0.53363968]
[1766740745996,0.03572127,2966.3,2965.3,1.46433564]
[1766740745997,1.04767411,2966.3,2965.3,1.46433564]
[1766740746295,4.41890086,2966.3,2965.2,0.49991515]
[1766740746489,4.41890086,2966.3,2965.1,6.74513506]
[1766740747973,8.3917558,2966.3,2965.2,1.01195284]
[1766740748272,8.35803453,2966.3,2965.2,1.01195284]
[1766740748472,0.95822472,2966.2,2965.2,1.94974903]
[1766740750167,3.97285494,2966.1,2965.0,0.001]
[1766740750491,3.97285494,2966.1,2965.1,3.37250824]
[1766740750492,0.03372127,2966.0,2965.1,3.37250824]
[1766740750691,0.40065762,2965.9,2965.1,3.37250824]
[1766740750999,0.43437889,2965.9,2965.2,3.40614462]
[1766740751173,0.03372127,2965.9,2965.2,3.40614462]
[1766740752474,0.03372127,2965.9,2965.2,0.03372453]
[1766740753074,0.03372127,2965.9,2965.1,3.37348653]
[1766740753271,0.03372127,2965.9,2965.2,3.40615135]
[1766740753499,0.03372127,2966.2,2965.2,11.25137523]
[1766740753702,0.887,2966.3,2965.4,3.97285494]
[1766740754001,0.03372127,2966.2,2965.3,1.12523752]
[1766740754206,0.03372127,2966.2,2965.2,7.75683345]
[1766740758694,0.03372127,2966.2,2965.3,0.0337234]
[1766740761702,0.03372127,2966.2,2965.2,7.75683345]
[1766740762311,0.03372127,2966.2,2965.3,0.0337234]
[1766740762490,0.87309796,2966.2,2965.3,0.0337234]
[1766740765308,4.24442876,2966.2,2965.3,3.37230415]
[1766740766186,0.87309796,2966.2,2965.3,3.37230415]
[1766740766517,4.24443243,2966.2,2965.3,3.37230415]
[1766740768019,0.87309796,2966.2,2965.1,6.74613506]
[1766740768320,0.87309796,2966.2,2965.2,1.25768688]
[1766740769619,0.87309796,2966.2,2965.3,0.53363855]
[1766740770116,1.04767411,2966.3,2965.4,6.74445268]
[1766740770287,1.04767411,2966.3,2965.5,0.03372112]
[1766740770485,1.93267411,2966.3,2965.5,0.03372112]
[1766740771222,5.30390285,2966.3,2965.5,0.03372112]
[1766740771400,6.17159312,2966.3,2965.5,0.03372112]
[1766740771600,2.80036438,2966.3,2965.5,0.03372112]
[1766740771804,1.91536438,2966.3,2965.5,0.03372112]
[1766740772191,1.91536438,2966.3,2965.6,3.37199892]
[1766740772389,1.91536438,2966.3,2965.7,0.03371885]
[1766740776126,1.91536438,2966.3,2965.6,3.40568539]
[1766740776301,1.91536438,2966.3,2965.6,0.03371998]
[1766740776802,1.91536438,2966.3,2965.4,0.03372226]
[1766740777134,1.91536438,2966.3,2965.4,3.87221795]
[1766740777730,5.28657585,2966.3,2965.4,3.87221795]
[1766740777901,1.91536438,2966.3,2965.4,3.87221795]
[1766740778733,5.28657266,2966.3,2965.4,3.87221795]
[1766740779833,1.91536438,2966.3,2965.4,3.87221795]
[1766740783325,5.28659927,2966.3,2965.4,3.87221795]
[1766740783634,0.52885993,2966.2,2965.4,3.87221795]
[1766740783834,1.91536438,2966.3,2965.4,3.87221795]
[1766740784638,5.28659102,2966.3,2965.4,3.87221795]
[1766740784934,1.91536438,2966.3,2965.4,3.87221795]
[1766740785103,5.28657896,2966.3,2965.4,3.87221795]
[1766740785501,1.91536438,2966.3,2965.4,3.87221795]
[1766740785932,5.28658631,2966.3,2965.4,3.87221795]
[1766740786133,0.52885863,2966.2,2965.4,3.87221795]
[1766740786736,1.91536438,2966.3,2965.4,3.87221795]
[1766740788950,5.28657325,2966.3,2965.4,3.87221795]
[1766740789113,1.91536438,2966.3,2965.4,3.87221795]
[1766740790814,5.28656812,2966.3,2965.4,3.87321795]
[1766740791939,1.91536438,2966.3,2965.4,3.87321795]
[1766740792436,5.28658412,2966.3,2965.4,3.87321795]
[1766740792645,0.52885089,2966.2,2965.4,0.03472226]
[1766740792832,0.03372127,2966.1,2965.4,0.001]
[1766740793231,0.03372127,2966.1,2965.4,3.37319527]
[1766740794055,0.03372127,2966.1,2965.4,0.001]
[1766740794344,1.04767411,2966.3,2965.4,0.03472226]
[1766740794516,1.57824478,2966.3,2965.4,0.03472226]
[1766740795745,4.94945952,2966.3,2965.4,0.03472226]
[1766740795930,4.94945952,2966.3,2965.4,3.40685088]
[1766740796137,1.57824478,2966.3,2965.4,3.40685088]
[1766740800054,4.94945016,2966.3,2965.4,3.40685088]
[1766740800438,1.57824478,2966.3,2965.4,3.40685088]
[1766740800750,1.57824478,2966.3,2965.4,4.08655596]
[1766740801556,4.94948817,2966.3,2965.4,4.08655596]
[1766740801878,8.32073156,2966.3,2965.4,0.71442734]
[1766740802158,5.8007669,2966.3,2965.4,3.37320513]
[1766740802353,0.03372127,2966.2,2965.4,0.001]
[1766740802558,0.03372127,2966.2,2965.4,0.67569076]
[1766740802729,0.03372127,2966.2,2965.5,0.03372112]
[1766740803065,2.42952351,2966.3,2965.5,0.03372112]
[1766740804155,0.03372127,2966.2,2965.5,0.03372112]
[1766740806367,3.40504256,2966.2,2965.4,0.67569076]
[1766740806662,4.32581014,2966.2,2965.4,0.001]
[1766740807459,0.95448885,2966.2,2965.4,3.37321]
[1766740809166,0.03372127,2966.2,2965.5,0.03372112]
[1766740809485,0.03372127,2966.2,2965.5,3.40582432]
[1766740809835,0.03372127,2966.2,2965.5,0.03372112]
[1766740810563,0.03372127,2966.2,2965.5,3.40582072]
[1766740811770,0.03372127,2966.2,2965.5,0.03372112]
[1766740813170,0.03372127,2966.2,2965.5,3.40578166]
[1766740814185,0.03372127,2966.2,2965.5,0.03372112]
[1766740815889,0.03372127,2966.2,2965.4,3.37316614]
[1766740816058,0.47580988,2966.2,2965.4,0.001]
[1766740818783,0.47780988,2966.2,2965.4,0.001]
[1766740819685,0.002,2966.2,2965.4,0.03472226]
[1766740823390,0.002,2966.2,2965.6,3.97203556]
[1766740823592,0.002,2966.6,2965.9,3.97203556]
[1766740823755,3.37047043,2967.0,2965.7,0.03371885]
[1766740823756,0.09672276,2967.0,2966.2,3.97203556]
[1766740823958,0.09672276,2967.0,2966.3,0.03371203]
[1766740824171,0.03572127,2967.4,2966.4,0.40057476]
[1766740824392,0.002,2967.4,2966.5,0.03370975]
[1766740824576,0.002,2967.4,2966.4,1.41210451]
[1766740824758,0.002,2967.4,2966.5,0.1870353]
[1766740825589,0.002,2967.4,2966.5,7.75342014]
[1766740827371,0.002,2967.4,2966.7,6.74149728]
[1766740827573,0.002,2967.4,2966.8,0.03370635]
[1766740828592,0.002,2967.4,2966.5,0.03370521]
[1766740828771,3.97203556,2967.2,2966.8,0.0337052]
[1766740828972,3.97203556,2967.2,2966.0,0.01687878]
[1766740828973,1.43334001,2967.1,2966.2,2.44108791]
[1766740829179,3.36955712,2967.8,2966.2,2.44108791]
[1766740829180,0.43295528,2967.9,2966.2,0.01687878]
[1766740829513,0.22558024,2968.0,2967.4,0.01687878]
[1766740829797,0.25087805,2968.0,2967.9,0.01687878]
[1766740829999,0.04240031,2968.2,2967.9,0.01687878]
[1766740830168,0.02529781,2968.5,2968.1,0.01687878]
[1766740830498,0.3623619,2968.5,2968.1,0.01687878]
[1766740830677,0.02529781,2968.5,2968.3,0.01687878]
[1766740831194,0.002,2968.6,2968.3,0.01687878]
[1766740833090,0.002,2968.6,2967.9,0.01687878]
[1766740833091,3.97403556,2968.6,2967.9,0.01687878]
[1766740833291,3.97203556,2968.3,2967.3,3.36998701]
[1766740833492,0.42250137,2968.2,2967.2,3.37014029]
[1766740833663,0.42250137,2968.2,2967.3,0.01687878]
[1766740833864,3.97203556,2967.9,2967.3,0.01687878]
[1766740834060,0.02529781,2967.8,2967.3,0.01687878]
[1766740834388,7.62225696,2968.2,2967.3,0.01687878]
[1766740834389,0.13485426,2968.0,2967.3,0.01687878]
[1766740834589,0.02529781,2967.9,2967.3,0.01687878]
[1766740835090,3.99733337,2967.9,2967.1,0.05058172]
[1766740835401,3.99733337,2967.9,2967.1,0.01687878]
[1766740835601,0.41321876,2967.8,2967.2,0.01687878]
[1766740835805,3.39500966,2967.7,2967.2,0.01687878]
[1766740836707,0.02529781,2967.7,2967.2,0.01687878]
[1766740838012,0.90929781,2967.7,2967.2,0.01687878]
[1766740840983,4.27895048,2967.7,2967.1,0.001]
[1766740841308,0.46920229,2967.6,2967.1,0.01787878]
[1766740841491,0.02529781,2967.5,2967.1,0.01787878]
[1766740843613,0.02529781,2967.5,2967.1,0.001]
[1766740843808,0.38642522,2967.4,2967.1,0.001]
[1766740844011,0.02529781,2967.3,2967.1,0.001]
[1766740849712,0.38642522,2967.4,2967.2,0.01687878]
[1766740850016,1.29721876,2967.8,2967.3,0.03370067]
[1766740850317,0.884,2967.8,2967.3,0.01687878]
[1766740850687,0.884,2967.8,2967.5,0.01687878]
[1766740850900,3.3710803,2968.2,2967.7,0.01687878]
[1766740850901,3.3710985,2968.2,2967.7,0.01687878]
[1766740851205,0.49725237,2968.1,2967.8,0.01687878]
[1766740851400,0.13484471,2968.1,2967.8,0.01687878]
[1766740851601,0.002,2968.2,2967.7,0.01687878]
[1766740852137,0.002,2968.2,2967.8,0.03369499]
[1766740852308,0.002,2968.2,2967.7,0.01687878]
[1766740853232,0.002,2968.2,2967.8,0.01687878]
[1766740853527,0.002,2968.2,2968.0,0.01687878]
[1766740853731,0.002,2968.2,2968.0,3.38613733]
[1766740853895,0.002,2968.2,2968.1,0.03369158]
[1766740855746,3.28549643,2969.4,2968.6,0.01687878]
[1766740855919,0.48863582,2969.3,2968.8,0.01687878]
[1766740856129,0.16008618,2969.3,2969.0,0.01687878]
[1766740856302,0.22795272,2969.6,2968.9,0.01687878]
[1766740856644,0.02529781,2969.5,2969.1,0.01687878]
[1766740856802,0.02529781,2969.5,2968.9,0.01687878]
[1766740857006,0.02529781,2969.5,2968.7,0.01687878]
[1766740857319,0.69881771,2969.4,2968.7,0.01687878]
[1766740857614,0.69881771,2969.4,2968.9,0.01687878]
[1766740857799,0.02529781,2969.5,2968.9,0.01687878]
[1766740858007,0.02529781,2969.5,2968.6,3.38545867]
[1766740858205,0.02529781,2969.5,2968.9,0.01687878]
[1766740858508,3.3928973,2969.5,2968.6,0.01687878]
[1766740858832,0.45048008,2969.4,2968.8,0.01687878]
[1766740859035,0.02529781,2969.3,2968.8,0.01687878]
[1766740859235,0.47577789,2969.4,2969.0,0.01687878]
[1766740859435,0.02529781,2969.5,2969.0,0.01687878]
[1766740860209,0.002,2969.4,2969.0,0.01687878]
[1766740860811,0.002,2969.4,2968.9,0.01687878]
[1766740861537,0.45267165,2969.4,2968.9,0.01687878]
[1766740861736,0.02529781,2969.3,2968.6,0.01687878]
[1766740861935,3.36791054,2969.2,2968.2,0.01687878]
[1766740862237,0.02529781,2969.1,2968.4,0.01687878]
[1766740862422,0.33932084,2969.0,2968.4,0.01687878]
[1766740863032,0.02529781,2968.9,2968.2,0.01687878]
[1766740863233,0.02529781,2968.9,2968.3,0.03368931]
[1766740864235,0.36461865,2969.0,2968.4,0.01687878]
[1766740864826,3.39313772,2969.3,2968.5,0.05056582]
[1766740865031,0.884,2969.2,2968.7,0.01687878]
[1766740865329,0.90929781,2969.3,2968.5,0.05056582]
[1766740865627,1.4706674,2969.3,2968.7,0.01687878]
[1766740866633,0.5866674,2969.3,2968.8,0.01687878]
[1766740866817,0.02529781,2969.3,2968.8,0.01687878]
[1766740867018,0.02729781,2969.4,2968.8,0.01687878]
[1766740867448,0.002,2969.4,2968.8,0.01687878]
[1766740867650,0.002,2969.4,2969.0,0.01687878]
[1766740867934,0.002,2969.3,2969.0,0.01687878]
[1766740870129,0.002,2969.3,2969.2,0.01687878]
[1766740870443,6.73345696,2970.3,2969.1,0.01687878]
[1766740870642,10.69700936,2970.3,2969.2,0.13474569]
[1766740870826,10.69700936,2970.3,2969.0,3.36812632]
[1766740871023,10.69700936,2970.3,2969.1,0.03368023]
[1766740871325,1.08317551,2970.2,2969.1,0.03368023]
[1766740871524,3.36672412,2970.3,2969.1,0.03368023]
[1766740871823,6.73345696,2970.3,2969.0,7.76379649]
[1766740872029,10.69554171,2970.3,2969.0,7.76379649]
[1766740872322,0.13474569,2970.4,2969.3,3.96208475]
[1766740872514,0.13474569,2970.4,2969.4,0.03367683]
[1766740872714,0.13474569,2970.4,2969.5,0.39957616]
[1766740872937,0.884,2970.6,2969.5,0.39957616]
[1766740873328,4.25035978,2970.6,2969.6,0.03367456]
[1766740873718,4.97261276,2970.7,2969.6,0.03367456]
[1766740873719,3.36621761,2970.7,2969.6,0.03367456]
[1766740873915,5.18270651,2970.6,2969.6,0.44122143]
[1766740874114,5.18270651,2970.6,2969.4,0.01687878]
[1766740874315,3.36643662,2970.5,2969.5,3.36757029]
[1766740875445,4.58698852,2970.6,2969.6,0.01687878]
[1766740875819,4.58698852,2970.6,2969.5,4.37804725]
[1766740875820,7.95335528,2970.6,2969.5,1.01047696]
[1766740876027,7.95535528,2970.6,2969.5,1.01047696]
[1766740876222,3.36654995,2970.4,2969.5,5.55053187]
[1766740876827,1.191744,2970.5,2969.5,5.55053187]
[1766740877023,1.191744,2970.5,2969.5,8.91810216]
[1766740877229,1.22262176,2970.6,2969.5,8.91810216]
[1766740877424,1.22262176,2970.6,2969.5,12.88018691]
[1766740877613,1.22262176,2970.6,2969.6,0.01687878]
[1766740877815,0.002,2970.6,2969.6,0.01687878]
[1766740878040,0.002,2970.6,2969.7,0.03367343]
[1766740878247,0.002,2970.6,2969.8,3.38406901]
[1766740878922,0.002,2970.6,2969.9,0.03367116]
[1766740879254,0.002,2970.6,2969.8,3.36719023]
[1766740879563,0.002,2970.6,2969.9,0.33671902]
[1766740882324,0.002,2970.6,2969.7,3.36732587]
[1766740882651,4.94492656,2970.6,2969.2,0.58032859]
[1766740882822,4.94492656,2970.6,2968.9,3.36822784]
[1766740883016,4.94492656,2970.6,2969.1,3.36795999]
[1766740883017,1.01064376,2970.5,2969.1,3.36795999]
[1766740883221,0.59555703,2970.4,2969.2,3.36790846]
[1766740883422,0.884,2970.3,2969.2,3.36790846]
[1766740883637,0.884,2970.3,2969.1,0.67361878]
[1766740883844,0.884,2970.3,2969.0,3.36812035]
[1766740884047,1.01064376,2970.2,2969.0,3.36812035]
[1766740884254,1.01064376,2970.2,2968.9,3.36820663]
[1766740884570,1.01064376,2970.2,2968.6,0.01787878]
[1766740884571,6.73378,2970.1,2968.6,0.001]
[1766740884751,10.10067,2970.1,2968.6,0.001]
[1766740884922,1.11113138,2970.0,2968.6,3.40325536]
[1766740885554,0.884,2969.9,2968.6,3.40325536]
[1766740886929,3.36723011,2969.8,2968.6,3.40325536]
[1766740887254,0.884,2969.7,2968.6,6.77184661]
[1766740887650,3.36723011,2969.8,2968.6,6.77184661]
[1766740887835,1.55744338,2969.7,2968.7,0.67718466]
[1766740888038,1.55744338,2969.7,2968.8,0.03368364]
[1766740888243,0.67344338,2969.7,2968.7,0.67718466]
[1766740888451,7.61832766,2969.9,2968.7,0.67718466]
[1766740888646,7.61832766,2969.9,2968.6,3.36956945]
[1766740888852,7.61832766,2969.9,2968.7,0.03368477]
[1766740889054,0.884,2969.8,2968.8,3.36836432]
[1766740889265,0.884,2969.8,2968.9,0.0336825]
[1766740889971,10.09964985,2970.4,2968.9,0.0336825]
[1766740890156,2.38825764,2970.3,2968.9,0.0336825]
[1766740891669,6.73355328,2970.2,2969.0,3.36813742]
[1766740891968,0.002,2969.9,2969.1,0.03368023]
[1766740892670,0.002,2969.9,2968.9,3.36821973]
[1766740894669,0.002,2969.9,2968.7,6.73695556]
[1766740894868,0.002,2969.9,2968.8,0.85948343]
[1766740895067,0.002,2969.9,2968.9,0.01687878]
[1766740895252,0.002,2969.9,2969.0,0.03368137]
[1766740895565,0.002,2969.9,2968.9,0.0336825]
[1766740896070,0.002,2969.9,2968.8,0.87636221]
[1766740896246,0.002,2969.9,2968.9,1.09817956]
[1766740897067,0.002,2969.9,2968.8,3.36828066]
[1766740897843,0.002,2969.9,2968.6,1.841]
[1766740898039,0.002,2969.9,2968.6,0.001]
[1766740899275,4.94492656,2969.9,2968.6,0.001]
[1766740899607,4.94492656,2969.9,2968.0,4.25318834]
[1766740899608,4.94292656,2969.5,2968.0,4.25318834]
[1766740899764,0.884,2969.4,2968.9,0.001]
[1766740899953,0.884,2969.4,2968.0,0.884]
[1766740900155,0.884,2969.4,2968.1,3.36909465]
[1766740900355,0.58269266,2969.3,2968.1,3.36909465]
[1766740900558,0.58269266,2969.3,2968.2,3.36904287]
[1766740900758,0.58269266,2969.3,2968.0,0.884]
[1766740900980,6.73582108,2969.2,2968.0,0.884]
[1766740901280,6.73582108,2969.2,2967.9,3.36937566]
[1766740901486,0.73185137,2969.1,2967.9,3.36937566]
[1766740901870,0.73185137,2969.1,2968.0,3.3692683]
[1766740902087,0.73185137,2969.1,2967.7,0.001]
[1766740902251,0.73185137,2969.1,2967.8,3.36948794]
[1766740902447,0.74676725,2969.0,2967.9,0.03369385]
[1766740902648,0.74676725,2969.0,2967.7,0.001]
[1766740903090,0.74676725,2969.0,2967.9,3.36933562]
[1766740903372,0.74676725,2969.0,2967.7,6.74019492]
[1766740903373,3.36825086,2968.9,2967.7,6.74019492]
[1766740903578,0.41150181,2968.8,2967.8,0.76241949]
[1766740903959,4.37747149,2968.8,2967.8,0.76241949]
[1766740905774,7.74593042,2968.8,2967.8,4.13190475]
[1766740906084,3.96596968,2968.6,2967.7,3.37054806]
[1766740906458,3.96596968,2968.6,2967.8,3.36946961]
[1766740907646,4.37747149,2968.8,2967.8,3.36946961]
[1766740907965,4.37747149,2968.8,2967.7,6.74018725]
[1766740908658,4.37747149,2968.8,2967.8,0.001]
[1766740908859,4.37747149,2968.8,2967.8,0.76351873]
[1766740909480,4.37747149,2968.8,2967.9,3.36938576]
[1766740910068,0.41150181,2968.8,2967.9,3.36938576]
[1766740912184,0.41150181,2968.8,2967.9,6.73877152]
[1766740912386,0.884,2968.9,2967.9,6.73877152]
[1766740913277,0.884,2968.9,2968.0,0.03369272]
[1766740914282,0.884,2968.9,2968.0,3.40289366]
[1766740914459,4.11491839,2969.0,2968.0,3.40289366]
[1766740914786,0.884,2968.9,2968.0,3.40289366]
[1766740914985,0.884,2968.9,2968.1,0.34028937]
[1766740915165,0.884,2968.9,2968.2,0.03369045]
[1766740915778,0.74676725,2969.0,2968.2,0.03369045]
[1766740916090,0.884,2969.0,2968.2,0.03369045]
[1766740916252,0.884,2969.0,2968.2,3.40265328]
[1766740916751,6.73446022,2969.8,2968.2,6.77169849]
[1766740916950,0.884,2969.7,2968.3,0.01687878]
[1766740917150,0.002,2968.9,2968.4,1.01576225]
[1766740917371,1.30932301,2969.7,2968.4,1.04945043]
[1766740917699,1.30932301,2969.7,2968.4,1.01576225]
[1766740918384,1.30932301,2969.7,2968.5,3.36870473]
[1766740918385,4.67677383,2969.7,2968.5,3.36870473]
[1766740918596,4.67677383,2969.7,2968.6,0.77532228]
[1766740919389,0.884,2969.6,2968.6,0.77532228]
[1766740920102,0.002,2969.9,2968.7,0.03368477]
[1766740920305,0.884,2969.8,2968.6,0.77532228]
[1766740920592,0.002,2969.9,2968.8,3.36836432]
[1766740920796,0.884,2969.8,2968.8,3.36836432]
[1766740921271,0.884,2969.8,2968.7,0.75296105]
[1766740921472,0.884,2969.8,2968.6,4.14383972]
[1766740921677,0.884,2969.8,2968.7,3.36846192]
[1766740921981,0.884,2969.8,2968.6,0.77532228]
[1766740921982,0.884,2969.8,2968.4,1.84]
[1766740922164,0.884,2969.8,2968.7,3.36847385]
[1766740922362,0.884,2969.8,2968.8,0.03368364]
[1766740922564,4.1294259,2969.7,2968.8,0.03368364]
[1766740922881,4.1294259,2969.7,2968.6,3.36852515]
[1766740923085,4.1294259,2969.7,2968.7,0.03368477]
[1766740923597,4.1294259,2969.7,2968.7,3.40215322]
[1766740923956,0.76203168,2969.7,2968.7,3.40215322]
[1766740924175,0.50133107,2969.6,2968.8,3.36835836]
[1766740924378,0.50133107,2969.6,2968.7,0.03368477]
[1766740924610,0.50133107,2969.6,2968.7,3.40213551]
[1766740925898,3.86879501,2969.6,2968.7,0.03368477]
[1766740926108,3.36746394,2969.6,2968.7,0.03368477]